[Event "Late-Titled-Tuesday-Blitz-March-19-2024"]
[Site "Chess.com"]
[Date "2024.03.19"]
[Round "11"]
[White "carloseduar100"]
[Black "emeli_chess"]
[Result "1/2-1/2"]
[WhiteElo "2263"]
[BlackElo "2386"]
[TimeControl "180+1"]
[EndTime "16:06:51 PDT"]
[Termination "Game drawn by repetition"]

1. d4 {[%clk 0:02:18.9]} 1... Nf6 {[%clk 0:02:58.5]} 2. Bg5 {[%clk 0:02:18.7]}
2... e6 {[%clk 0:02:58.3]} 3. e4 {[%clk 0:02:17.6]} 3... h6 {[%clk 0:02:58.6]}
4. Bxf6 {[%clk 0:02:16.1]} 4... Qxf6 {[%clk 0:02:58.8]} 5. c3 {[%clk 0:02:17]}
5... d5 {[%clk 0:02:58.8]} 6. e5 {[%clk 0:02:16.7]} 6... Qd8 {[%clk 0:02:59]} 7.
Nd2 {[%clk 0:02:17]} 7... c5 {[%clk 0:02:59.2]} 8. Bd3 {[%clk 0:02:17.3]} 8...
Nc6 {[%clk 0:02:58.8]} 9. Ne2 {[%clk 0:02:17.6]} 9... Qb6 {[%clk 0:02:58.3]} 10.
O-O {[%clk 0:02:17.5]} 10... Bd7 {[%clk 0:02:56.4]} 11. Kh1 {[%clk 0:02:17.6]}
11... g5 {[%clk 0:02:41.8]} 12. f4 {[%clk 0:02:17.2]} 12... gxf4 {[%clk
0:02:39.7]} 13. Rxf4 {[%clk 0:02:18.1]} 13... Be7 {[%clk 0:02:33.3]} 14. c4
{[%clk 0:01:48.4]} 14... Bg5 {[%clk 0:02:23.2]} 15. dxc5 {[%clk 0:01:42.1]}
15... Qxb2 {[%clk 0:02:10.3]} 16. cxd5 {[%clk 0:01:36.2]} 16... Qxe5 {[%clk
0:01:56.4]} 17. dxc6 {[%clk 0:01:31.6]} 17... Bxc6 {[%clk 0:01:53.7]} 18. Nc4
{[%clk 0:01:22.9]} 18... Qxc5 {[%clk 0:01:51.2]} 19. Rg4 {[%clk 0:01:14.3]}
19... O-O-O {[%clk 0:01:46.2]} 20. Qc2 {[%clk 0:01:07.7]} 20... h5 {[%clk
0:01:37.5]} 21. Re4 {[%clk 0:00:35]} 21... h4 {[%clk 0:01:25.7]} 22. Ne5 {[%clk
0:00:23.5]} 22... Qxc2 {[%clk 0:01:22.3]} 23. Bxc2 {[%clk 0:00:24.4]} 23... Bxe4
{[%clk 0:01:14.9]} 24. Bxe4 {[%clk 0:00:25.3]} 24... Rd2 {[%clk 0:01:08.9]} 25.
Ng1 {[%clk 0:00:17.7]} 25... h3 {[%clk 0:00:56.7]} 26. Nxh3 {[%clk 0:00:17.1]}
26... Kb8 {[%clk 0:00:44.9]} 27. Nxg5 {[%clk 0:00:16.1]} 27... Rc8 {[%clk
0:00:44]} 28. Ngxf7 {[%clk 0:00:15.5]} 28... Rxa2 {[%clk 0:00:42]} 29. Rf1
{[%clk 0:00:12.9]} 29... Re2 {[%clk 0:00:41.2]} 30. Bf3 {[%clk 0:00:12.2]} 30...
Rd2 {[%clk 0:00:40.3]} 31. h3 {[%clk 0:00:12.4]} 31... a5 {[%clk 0:00:39.5]} 32.
Rb1 {[%clk 0:00:12.4]} 32... Rc7 {[%clk 0:00:38.2]} 33. Ng5 {[%clk 0:00:11.8]}
33... a4 {[%clk 0:00:36.1]} 34. Nxe6 {[%clk 0:00:12]} 34... Rcc2 {[%clk
0:00:33.7]} 35. Rxb7+ {[%clk 0:00:11]} 35... Kc8 {[%clk 0:00:34.2]} 36. Nf4
{[%clk 0:00:06.7]} 36... a3 {[%clk 0:00:32]} 37. Ra7 {[%clk 0:00:07]} 37... a2
{[%clk 0:00:30.5]} 38. Kh2 {[%clk 0:00:07.1]} 38... Rc1 {[%clk 0:00:30.5]} 39.
Rxa2 {[%clk 0:00:07.5]} 39... Rxa2 {[%clk 0:00:30.2]} 40. h4 {[%clk 0:00:08.1]}
40... Rc3 {[%clk 0:00:29.8]} 41. Kg3 {[%clk 0:00:08]} 41... Ra5 {[%clk
0:00:28.7]} 42. Nfg6 {[%clk 0:00:07.5]} 42... Kd8 {[%clk 0:00:28]} 43. h5 {[%clk
0:00:07.8]} 43... Rc1 {[%clk 0:00:27.5]} 44. h6 {[%clk 0:00:07.8]} 44... Rh1
{[%clk 0:00:27.4]} 45. Kg4 {[%clk 0:00:06.3]} 45... Rxh6 {[%clk 0:00:26.2]} 46.
Nf7+ {[%clk 0:00:06.6]} 46... Ke8 {[%clk 0:00:24.6]} 47. Nxh6 {[%clk 0:00:07.5]}
47... Kd7 {[%clk 0:00:24.6]} 48. Nf4 {[%clk 0:00:07.8]} 48... Ke7 {[%clk
0:00:24.3]} 49. Nf5+ {[%clk 0:00:08.1]} 49... Kf6 {[%clk 0:00:24.5]} 50. Ne3
{[%clk 0:00:08.5]} 50... Ra4 {[%clk 0:00:24.5]} 51. g3 {[%clk 0:00:08.4]} 51...
Ra3 {[%clk 0:00:24.4]} 52. Ned5+ {[%clk 0:00:08.7]} 52... Ke5 {[%clk 0:00:24.3]}
53. Ne7 {[%clk 0:00:08.8]} 53... Kf6 {[%clk 0:00:23.9]} 54. Nc6 {[%clk
0:00:08.8]} 54... Ra2 {[%clk 0:00:21.3]} 55. Nd3 {[%clk 0:00:05.7]} 55... Kg6
{[%clk 0:00:20]} 56. Kf4 {[%clk 0:00:05.8]} 56... Kf6 {[%clk 0:00:19.9]} 57. Be4
{[%clk 0:00:06]} 57... Ra4 {[%clk 0:00:18.9]} 58. g4 {[%clk 0:00:06.1]} 58...
Kg7 {[%clk 0:00:18]} 59. Nce5 {[%clk 0:00:06.2]} 59... Ra3 {[%clk 0:00:17.3]}
60. g5 {[%clk 0:00:06.5]} 60... Ra1 {[%clk 0:00:17.5]} 61. g6 {[%clk 0:00:06.8]}
61... Rf1+ {[%clk 0:00:17.5]} 62. Kg5 {[%clk 0:00:07]} 62... Rg1+ {[%clk
0:00:17]} 63. Ng4 {[%clk 0:00:07.6]} 63... Ra1 {[%clk 0:00:14.5]} 64. Bf5 {[%clk
0:00:07.5]} 64... Ra5 {[%clk 0:00:14.2]} 65. Nf4 {[%clk 0:00:08]} 65... Ra6
{[%clk 0:00:13.6]} 66. Ne6+ {[%clk 0:00:08]} 66... Kg8 {[%clk 0:00:13.8]} 67.
Kf6 {[%clk 0:00:08.1]} 67... Ra7 {[%clk 0:00:13.1]} 68. Ne5 {[%clk 0:00:08.8]}
68... Kh8 {[%clk 0:00:11.1]} 69. Nf7+ {[%clk 0:00:08.8]} 69... Kg8 {[%clk
0:00:11.4]} 70. Nh6+ {[%clk 0:00:09.1]} 70... Kh8 {[%clk 0:00:10.2]} 71. Ng4
{[%clk 0:00:09]} 71... Kg8 {[%clk 0:00:09.7]} 72. Ne3 {[%clk 0:00:09.4]} 72...
Ra6 {[%clk 0:00:08.5]} 73. Nd5 {[%clk 0:00:09.5]} 73... Kh8 {[%clk 0:00:07.8]}
74. Ne7 {[%clk 0:00:09.8]} 74... Rxe6+ {[%clk 0:00:06.4]} 75. Kxe6 {[%clk
0:00:10.1]} 75... Kg7 {[%clk 0:00:06.9]} 76. Nd5 {[%clk 0:00:09.4]} 76... Kg8
{[%clk 0:00:06.8]} 77. Kf6 {[%clk 0:00:09.4]} 77... Kh8 {[%clk 0:00:07]} 78. Nf4
{[%clk 0:00:09.9]} 78... Kg8 {[%clk 0:00:07.2]} 79. Ne2 {[%clk 0:00:10.7]} 79...
Kh8 {[%clk 0:00:07.5]} 80. Nc3 {[%clk 0:00:11.6]} 80... Kg8 {[%clk 0:00:07.9]}
81. Nd5 {[%clk 0:00:12.2]} 81... Kh8 {[%clk 0:00:08.4]} 82. Bg4 {[%clk
0:00:11.8]} 82... Kg8 {[%clk 0:00:08.8]} 83. Bf5 {[%clk 0:00:11.9]} 1/2-1/2

[Event "Late-Titled-Tuesday-Blitz-March-19-2024"]
[Site "Chess.com"]
[Date "2024.03.19"]
[Round "11"]
[White "gorgeous1083"]
[Black "Bala-Afiada"]
[Result "1-0"]
[WhiteElo "2057"]
[BlackElo "1876"]
[TimeControl "180+1"]
[EndTime "16:07:00 PDT"]
[Termination "gorgeous1083 won by resignation"]

1. d4 {[%clk 0:03:00.9]} 1... d5 {[%clk 0:02:54.3]} 2. c4 {[%clk 0:03:00.9]}
2... c6 {[%clk 0:02:50.3]} 3. Nc3 {[%clk 0:02:57.5]} 3... Nf6 {[%clk 0:02:49.8]}
4. e3 {[%clk 0:02:56.3]} 4... e6 {[%clk 0:02:50.4]} 5. Nf3 {[%clk 0:02:56.7]}
5... Bd6 {[%clk 0:02:50.2]} 6. Bd3 {[%clk 0:02:57]} 6... O-O {[%clk 0:02:50.7]}
7. O-O {[%clk 0:02:56]} 7... Nbd7 {[%clk 0:02:49.8]} 8. Re1 {[%clk 0:02:54.1]}
8... dxc4 {[%clk 0:02:38.3]} 9. Bxc4 {[%clk 0:02:53.9]} 9... e5 {[%clk
0:02:37.6]} 10. dxe5 {[%clk 0:02:50]} 10... Nxe5 {[%clk 0:02:38.5]} 11. Be2
{[%clk 0:02:44]} 11... Bg4 {[%clk 0:02:32.2]} 12. b3 {[%clk 0:02:32.5]} 12...
Qc7 {[%clk 0:02:25.7]} 13. h3 {[%clk 0:02:24.7]} 13... Nxf3+ {[%clk 0:02:10.6]}
14. Bxf3 {[%clk 0:02:24.3]} 14... Bxf3 {[%clk 0:02:10.1]} 15. Qxf3 {[%clk
0:02:25.2]} 15... Rfe8 {[%clk 0:02:04.6]} 16. Bb2 {[%clk 0:02:24.8]} 16... Be5
{[%clk 0:02:01.7]} 17. Rac1 {[%clk 0:02:23]} 17... Qa5 {[%clk 0:01:37.3]} 18.
Red1 {[%clk 0:02:05.5]} 18... Rad8 {[%clk 0:01:35.4]} 19. a4 {[%clk 0:01:53.6]}
19... Rxd1+ {[%clk 0:01:32.4]} 20. Qxd1 {[%clk 0:01:39.8]} 20... Rd8 {[%clk
0:01:31.8]} 21. Qe1 {[%clk 0:01:35.5]} 21... Rd3 {[%clk 0:01:17.2]} 22. Ba1
{[%clk 0:01:22.7]} 22... Bxc3 {[%clk 0:01:00.2]} 23. Bxc3 {[%clk 0:01:21.6]}
23... Qd5 {[%clk 0:00:57.1]} 24. Bxf6 {[%clk 0:01:01.2]} 24... gxf6 {[%clk
0:00:57.3]} 25. Qb4 {[%clk 0:00:56.8]} 25... Rd1+ {[%clk 0:00:36.9]} 26. Rxd1
{[%clk 0:00:56.5]} 26... Qxd1+ {[%clk 0:00:37.8]} 27. Kh2 {[%clk 0:00:56.8]}
27... b6 {[%clk 0:00:38.3]} 28. Qc3 {[%clk 0:00:46.2]} 28... Qd6+ {[%clk
0:00:36]} 29. g3 {[%clk 0:00:45.7]} 29... c5 {[%clk 0:00:25.7]} 30. Qc4 {[%clk
0:00:41.1]} 30... Qe5 {[%clk 0:00:21.4]} 31. Qg4+ {[%clk 0:00:36.6]} 31... Kf8
{[%clk 0:00:20.4]} 32. Qc8+ {[%clk 0:00:32.3]} 32... Kg7 {[%clk 0:00:20.5]} 33.
Qg4+ {[%clk 0:00:31.9]} 33... Kf8 {[%clk 0:00:20.8]} 34. Qf3 {[%clk 0:00:27.6]}
34... Qb2 {[%clk 0:00:18.8]} 35. e4 {[%clk 0:00:19.5]} 35... Qd4 {[%clk
0:00:16.6]} 36. Kg2 {[%clk 0:00:19.2]} 36... Kg7 {[%clk 0:00:16.6]} 37. Qg4+
{[%clk 0:00:18.3]} 37... Kf8 {[%clk 0:00:16.9]} 38. Qf3 {[%clk 0:00:17.9]} 38...
Kg7 {[%clk 0:00:17.3]} 39. Qg4+ {[%clk 0:00:17.9]} 39... Kf8 {[%clk 0:00:17.6]}
40. Qf5 {[%clk 0:00:18.4]} 40... c4 {[%clk 0:00:16.1]} 41. Qc8+ {[%clk
0:00:16.6]} 41... Kg7 {[%clk 0:00:15.9]} 42. Qxc4 {[%clk 0:00:17.1]} 42... Qe5
{[%clk 0:00:16]} 43. Qd3 {[%clk 0:00:16.3]} 43... Qc5 {[%clk 0:00:14.8]} 44. Qf3
{[%clk 0:00:12.9]} 44... Qe5 {[%clk 0:00:14.7]} 45. Qg4+ {[%clk 0:00:13.1]}
45... Kf8 {[%clk 0:00:14.6]} 46. h4 {[%clk 0:00:12.4]} 46... Qc3 {[%clk
0:00:13.5]} 47. Qf3 {[%clk 0:00:12.3]} 47... Qe5 {[%clk 0:00:13.6]} 48. Qd3
{[%clk 0:00:12.3]} 48... Kg7 {[%clk 0:00:11.8]} 49. Qd5 {[%clk 0:00:12.4]} 49...
Qc3 {[%clk 0:00:11.7]} 50. Qc4 {[%clk 0:00:11.3]} 50... Qd2 {[%clk 0:00:11.8]}
51. b4 {[%clk 0:00:08.6]} 51... Qd6 {[%clk 0:00:10.9]} 52. a5 {[%clk 0:00:07.5]}
52... bxa5 {[%clk 0:00:10.8]} 53. bxa5 {[%clk 0:00:08.4]} 53... Qe5 {[%clk
0:00:10.9]} 54. Qd5 {[%clk 0:00:07.5]} 54... Qc3 {[%clk 0:00:10.5]} 55. h5
{[%clk 0:00:03]} 55... h6 {[%clk 0:00:10]} 56. Qf5 {[%clk 0:00:02.4]} 56... Qd4
{[%clk 0:00:09.5]} 57. Qg4+ {[%clk 0:00:02.2]} 57... Kf8 {[%clk 0:00:09.6]} 58.
Qf5 {[%clk 0:00:02.6]} 58... Kg7 {[%clk 0:00:09.6]} 59. Qf4 {[%clk 0:00:02.6]}
59... Kf8 {[%clk 0:00:09.7]} 60. Qxh6+ {[%clk 0:00:02.6]} 60... Ke7 {[%clk
0:00:10.4]} 61. Qf4 {[%clk 0:00:03.2]} 61... Kf8 {[%clk 0:00:10.3]} 62. Qf5
{[%clk 0:00:03.6]} 62... Qd2 {[%clk 0:00:09.9]} 63. Qd5 {[%clk 0:00:04.5]} 63...
Qh6 {[%clk 0:00:09.5]} 64. Qf5 {[%clk 0:00:04.5]} 64... Kg8 {[%clk 0:00:09.8]}
65. Qc8+ {[%clk 0:00:04.7]} 65... Kg7 {[%clk 0:00:09.7]} 66. Qg4+ {[%clk
0:00:05.3]} 66... Kf8 {[%clk 0:00:10]} 67. Qf4 {[%clk 0:00:05.7]} 67... Qxh5
{[%clk 0:00:09.1]} 68. Qf5 {[%clk 0:00:05.3]} 68... Qh6 {[%clk 0:00:08.8]} 69.
Qc8+ {[%clk 0:00:05.2]} 69... Kg7 {[%clk 0:00:09.3]} 70. Qg4+ {[%clk 0:00:05.8]}
70... Kf8 {[%clk 0:00:09.9]} 71. f4 {[%clk 0:00:06.3]} 71... a6 {[%clk
0:00:08.5]} 72. Qf5 {[%clk 0:00:06.4]} 72... Qg7 {[%clk 0:00:07.5]} 73. Qc5+
{[%clk 0:00:06.3]} 73... Kg8 {[%clk 0:00:07.8]} 74. Qc8+ {[%clk 0:00:06.4]}
74... Kh7 {[%clk 0:00:08.4]} 75. Qxa6 {[%clk 0:00:07]} 75... Qg6 {[%clk
0:00:08.6]} 76. Qb5 {[%clk 0:00:07]} 76... Qxe4+ {[%clk 0:00:08.9]} 77. Kf2
{[%clk 0:00:07.2]} 77... Qc2+ {[%clk 0:00:09.1]} 78. Kf3 {[%clk 0:00:07]} 78...
Qc3+ {[%clk 0:00:08.3]} 79. Kg4 {[%clk 0:00:06.5]} 79... Qd2 {[%clk 0:00:08.7]}
80. Kh3 {[%clk 0:00:06.3]} 80... Qe1 {[%clk 0:00:08.1]} 81. Qh5+ {[%clk
0:00:06.1]} 81... Kg7 {[%clk 0:00:08.7]} 82. Qg4+ {[%clk 0:00:05.9]} 82... Kf8
{[%clk 0:00:09]} 83. Qc8+ {[%clk 0:00:05.2]} 83... Kg7 {[%clk 0:00:09.1]} 84. a6
{[%clk 0:00:05.1]} 84... Qh1+ {[%clk 0:00:08.8]} 85. Kg4 {[%clk 0:00:05.2]}
85... Qh6 {[%clk 0:00:09.2]} 86. Kf3 {[%clk 0:00:05.3]} 86... Qh5+ {[%clk
0:00:09.5]} 87. Qg4+ {[%clk 0:00:04.8]} 87... Qxg4+ {[%clk 0:00:09]} 88. Kxg4
{[%clk 0:00:05.7]} 1-0

[Event "Late-Titled-Tuesday-Blitz-March-19-2024"]
[Site "Chess.com"]
[Date "2024.03.19"]
[Round "11"]
[White "Revan_2002"]
[Black "I-Mesquita"]
[Result "1/2-1/2"]
[WhiteElo "2574"]
[BlackElo "2712"]
[TimeControl "180+1"]
[EndTime "16:07:02 PDT"]
[Termination "Game drawn by repetition"]

1. d4 {[%clk 0:02:59.5]} 1... d5 {[%clk 0:03:00.2]} 2. c4 {[%clk 0:02:59.9]}
2... e6 {[%clk 0:03:00.9]} 3. Nc3 {[%clk 0:03:00.4]} 3... Nf6 {[%clk 0:03:01.4]}
4. cxd5 {[%clk 0:03:00.8]} 4... exd5 {[%clk 0:03:02.3]} 5. Bg5 {[%clk
0:03:00.9]} 5... c6 {[%clk 0:03:02.1]} 6. e3 {[%clk 0:03:01.2]} 6... h6 {[%clk
0:03:02.1]} 7. Bh4 {[%clk 0:03:01]} 7... Be7 {[%clk 0:03:02.5]} 8. Bd3 {[%clk
0:03:01.4]} 8... O-O {[%clk 0:03:02.1]} 9. Nge2 {[%clk 0:03:01.9]} 9... Be6
{[%clk 0:03:02.1]} 10. Qc2 {[%clk 0:03:02.3]} 10... b5 {[%clk 0:03:01.2]} 11.
O-O {[%clk 0:03:02.1]} 11... Nbd7 {[%clk 0:02:58]} 12. f3 {[%clk 0:03:01.9]}
12... b4 {[%clk 0:02:57.5]} 13. Na4 {[%clk 0:03:00.1]} 13... c5 {[%clk
0:02:55.7]} 14. dxc5 {[%clk 0:02:59.9]} 14... Rc8 {[%clk 0:02:56.2]} 15. Nd4
{[%clk 0:02:58.5]} 15... Nxc5 {[%clk 0:02:52]} 16. Nxc5 {[%clk 0:02:57.9]} 16...
Bxc5 {[%clk 0:02:48.3]} 17. Qd2 {[%clk 0:02:57.6]} 17... Re8 {[%clk 0:02:30.4]}
18. Rac1 {[%clk 0:02:56.9]} 18... Bd7 {[%clk 0:02:22.7]} 19. Rfe1 {[%clk
0:02:51.8]} 19... Qb6 {[%clk 0:02:18]} 20. Bf2 {[%clk 0:02:49.9]} 20... a5
{[%clk 0:02:15]} 21. g4 {[%clk 0:02:28]} 21... Re5 {[%clk 0:01:55.7]} 22. h4
{[%clk 0:02:26.8]} 22... Rce8 {[%clk 0:01:55.3]} 23. Kg2 {[%clk 0:02:25.8]}
23... a4 {[%clk 0:01:44.4]} 24. Bg3 {[%clk 0:02:24.2]} 24... R5e7 {[%clk
0:01:36.2]} 25. g5 {[%clk 0:02:22.8]} 25... Nh5 {[%clk 0:01:32.6]} 26. Bf2
{[%clk 0:02:22.2]} 26... Bxd4 {[%clk 0:01:12.2]} 27. exd4 {[%clk 0:02:22.1]}
27... Qd6 {[%clk 0:01:11.3]} 28. Rxe7 {[%clk 0:02:09.9]} 28... Rxe7 {[%clk
0:01:06.7]} 29. Kh1 {[%clk 0:01:41.3]} 29... Qe6 {[%clk 0:00:49.6]} 30. Bf1
{[%clk 0:01:31.8]} 30... Qf5 {[%clk 0:00:46.1]} 31. Qd3 {[%clk 0:01:24.2]} 31...
Qf4 {[%clk 0:00:43]} 32. Re1 {[%clk 0:01:21.4]} 32... Rxe1 {[%clk 0:00:31.1]}
33. Bxe1 {[%clk 0:01:21.3]} 33... Ng3+ {[%clk 0:00:28.6]} 34. Bxg3 {[%clk
0:01:07.5]} 34... Qxg3 {[%clk 0:00:29.5]} 35. Qe3 {[%clk 0:01:07.8]} 35... Qxh4+
{[%clk 0:00:29.3]} 36. Kg2 {[%clk 0:01:03.8]} 36... Qxg5+ {[%clk 0:00:29.9]} 37.
Qxg5 {[%clk 0:01:04.4]} 37... hxg5 {[%clk 0:00:30.8]} 38. a3 {[%clk 0:01:05.1]}
38... bxa3 {[%clk 0:00:29.3]} 39. bxa3 {[%clk 0:01:06]} 39... Kf8 {[%clk
0:00:29.2]} 40. Kf2 {[%clk 0:00:56.6]} 40... Ke7 {[%clk 0:00:27.2]} 41. Ke3
{[%clk 0:00:52.9]} 41... Kf6 {[%clk 0:00:20.5]} 42. Bd3 {[%clk 0:00:52.8]} 42...
g4 {[%clk 0:00:18.7]} 43. f4 {[%clk 0:00:44.3]} 43... g5 {[%clk 0:00:17.3]} 44.
Bc2 {[%clk 0:00:44.2]} 44... g3 {[%clk 0:00:13.1]} 45. f5 {[%clk 0:00:28.6]}
45... g4 {[%clk 0:00:07.4]} 46. Ke2 {[%clk 0:00:20.6]} 46... Kg5 {[%clk
0:00:07]} 47. Kf1 {[%clk 0:00:11.5]} 47... Kf4 {[%clk 0:00:02.6]} 48. Kg2 {[%clk
0:00:11.6]} 48... Ke3 {[%clk 0:00:03.2]} 49. Kxg3 {[%clk 0:00:09.9]} 49... Kxd4
{[%clk 0:00:03.8]} 50. Kxg4 {[%clk 0:00:09.7]} 50... Kc3 {[%clk 0:00:04.5]} 51.
Bd1 {[%clk 0:00:08.3]} 51... Kb2 {[%clk 0:00:04.9]} 52. Kf4 {[%clk 0:00:07.5]}
52... Kxa3 {[%clk 0:00:04.4]} 53. Ke5 {[%clk 0:00:06.5]} 53... Kb2 {[%clk
0:00:04.9]} 54. Bf3 {[%clk 0:00:03.2]} 54... a3 {[%clk 0:00:04]} 55. Bxd5 {[%clk
0:00:03.2]} 55... Ba4 {[%clk 0:00:02.2]} 56. Bxf7 {[%clk 0:00:02.5]} 56... Bb3
{[%clk 0:00:02.8]} 57. Bxb3 {[%clk 0:00:02.7]} 57... Kxb3 {[%clk 0:00:03.7]} 58.
f6 {[%clk 0:00:03.6]} 58... a2 {[%clk 0:00:04.6]} 59. f7 {[%clk 0:00:04.4]}
59... a1=Q+ {[%clk 0:00:05.5]} 60. Ke6 {[%clk 0:00:04.9]} 60... Qa6+ {[%clk
0:00:05.8]} 61. Ke7 {[%clk 0:00:04.9]} 61... Qb7+ {[%clk 0:00:06.3]} 62. Ke8
{[%clk 0:00:04.8]} 62... Qc8+ {[%clk 0:00:06.7]} 63. Ke7 {[%clk 0:00:05]} 63...
Qc7+ {[%clk 0:00:07.3]} 64. Ke8 {[%clk 0:00:05.3]} 64... Qc6+ {[%clk 0:00:07.6]}
65. Ke7 {[%clk 0:00:05.4]} 65... Qc5+ {[%clk 0:00:08.2]} 66. Ke8 {[%clk
0:00:05.8]} 66... Qe5+ {[%clk 0:00:08.3]} 67. Kf8 {[%clk 0:00:02.7]} 67... Qh8+
{[%clk 0:00:08.1]} 68. Ke7 {[%clk 0:00:02.9]} 68... Qe5+ {[%clk 0:00:08.1]} 69.
Kf8 {[%clk 0:00:03.4]} 69... Qf6 {[%clk 0:00:08.7]} 70. Kg8 {[%clk 0:00:03.7]}
70... Qg6+ {[%clk 0:00:09.3]} 71. Kh8 {[%clk 0:00:04.2]} 71... Qh6+ {[%clk
0:00:08.5]} 72. Kg8 {[%clk 0:00:04.7]} 72... Qg5+ {[%clk 0:00:09.1]} 73. Kh8
{[%clk 0:00:05.3]} 73... Qe7 {[%clk 0:00:09.6]} 74. Kg8 {[%clk 0:00:05.4]} 74...
Qe6 {[%clk 0:00:10.3]} 75. Kg7 {[%clk 0:00:04.9]} 75... Qe5+ {[%clk 0:00:10.7]}
76. Kg8 {[%clk 0:00:05.2]} 76... Qg5+ {[%clk 0:00:10.7]} 77. Kh8 {[%clk
0:00:05.6]} 77... Qh6+ {[%clk 0:00:10.8]} 78. Kg8 {[%clk 0:00:05.9]} 78... Qg6+
{[%clk 0:00:11.5]} 79. Kh8 {[%clk 0:00:06.4]} 79... Qf6+ {[%clk 0:00:12]} 80.
Kg8 {[%clk 0:00:06.8]} 80... Qe7 {[%clk 0:00:12.3]} 81. Kg7 {[%clk 0:00:07.1]}
81... Kc4 {[%clk 0:00:11.9]} 82. Kg8 {[%clk 0:00:07.5]} 82... Qe6 {[%clk
0:00:11.8]} 83. Kg7 {[%clk 0:00:07.3]} 83... Qe7 {[%clk 0:00:11.4]} 84. Kg8
{[%clk 0:00:07.5]} 84... Qg5+ {[%clk 0:00:12]} 85. Kh8 {[%clk 0:00:07.6]} 85...
Qh6+ {[%clk 0:00:12.1]} 86. Kg8 {[%clk 0:00:07.8]} 86... Qg6+ {[%clk 0:00:12.6]}
87. Kh8 {[%clk 0:00:08.1]} 87... Qf6+ {[%clk 0:00:13.3]} 88. Kg8 {[%clk
0:00:08.2]} 88... Qe6 {[%clk 0:00:13.9]} 89. Kg7 {[%clk 0:00:08.1]} 89... Qe7
{[%clk 0:00:14.5]} 1/2-1/2